[Event "WYCC U18 Open 2019"]
[Site "Mumbai"]
[Date "2019.10.04"]
[Round "4.10"]
[White "Raghunandan, Kaumandur Srihari"]
[Black "Manish Anto Cristiano F"]
[Result "1-0"]
[ECO "D44"]
[WhiteElo "2449"]
[BlackElo "2320"]
[Annotator "NA"]
[PlyCount "45"]
[EventDate "2019.10.02"]
[EventType "swiss"]
[EventCountry "IND"]
[SourceTitle "playchess.com"]
[Source "ChessBase"]
[SourceQuality "1"]
[TimeControl "40/5400+30:1800+30"]

1. d4 {[%emt 0:00:00]} Nf6 {[%emt 0:00:00]} 2. c4 {[%emt 0:00:00]} e6 {[%emt 0:00:23]} 3. Nf3 {[%emt 0:00:00]} d5 {[%emt 0:00:22]} 4. Nc3 {[%emt 0:00:10]} c6 {[%emt 0:00:19]} 5. Bg5 {[%emt 0:00:21]} h6 {[%emt 0:03:20]} 6. Bh4 {[%emt 0:00:07]} dxc4 {[%emt 0:05:05]} 7. e4 {[%emt 0:00:10]} b5 {[%emt 0:01:14]} 8. e5 {[%emt 0:00:16]} g5 {[%emt 0:00:08]} 9. Nxg5 {[%emt 0:00:10]} hxg5 {[%emt 0:00:14]} 10. Bxg5 {[%emt 0:00:09]} Be7 {[%emt 0:00:10]} 11. exf6 {[%emt 0:00:27]} Bxf6 {[%emt 0:00:10]} 12. Be3 {[%emt 0:03:06]} Nd7 {[%emt 0:08:11]} 13. Qf3 {[%emt 0:07:32]} Bb7 {[%emt 0:06:53]} 14. g3 {[%emt 0:16:43]} Rb8 {[%emt 0:16:02]} 15. Ne4 {[%emt 0:17:46]} Be7 {[%emt 0:03:02]} 16. O-O-O {[%emt 0:00:08]} c5 {[%emt 0:06:59]} 17. dxc5 {[%emt 0:01:41]} Qc7 {[%emt 0:07:36]} 18. Bg2 {[%emt 0:24:01]} f5 {[%emt 0:12:03]} 19. c6 {[%emt 0:15:20]} Ne5 {[%emt 0:05:03]} 20. Bf4 {[%emt 0:02:01]} fxe4 {[%emt 0:06:49]} 21. Qxe4 {[%emt 0:00:17]} Bxc6 {[%emt 0:01:57]} 22. Qxe5 {[%emt 0:00:11]} Qxe5 {[%emt 0:01:48]} 23. Bxc6+ {[%emt 0:00:09]} 1-0

[Event "WYCC U18 Open 2019"]
[Site "Mumbai"]
[Date "2019.10.04"]
[Round "4.11"]
[White "Sydoryka, Vladyslav"]
[Black "Blohberger, Felix"]
[Result "1-0"]
[ECO "A20"]
[WhiteElo "2247"]
[BlackElo "2448"]
[Annotator "NA"]
[PlyCount "50"]
[EventDate "2019.10.02"]
[EventType "swiss"]
[EventCountry "IND"]
[SourceTitle "playchess.com"]
[Source "ChessBase"]
[SourceQuality "1"]
[TimeControl "40/5400+30:1800+30"]

1. c4 {[%emt 0:00:00]} e5 {[%emt 0:00:00]} 2. g3 {[%emt 0:00:00]} Nc6 {[%emt 0:00:00]} 3. Bg2 {[%emt 0:00:00]} Bc5 {[%emt 0:00:00]} 4. Nc3 {[%emt 0:00:31]} d6 {[%emt 0:00:40]} 5. e3 {[%emt 0:01:54]} a6 {[%emt 0:00:18]} 6. Nge2 {[%emt 0:00:08]} Ba7 {[%emt 0:00:16]} 7. d4 {[%emt 0:02:38]} h5 {[%emt 0:01:20]} 8. h4 {[%emt 0:06:04]} Nf6 {[%emt 0:02:32]} 9. a3 {[%emt 0:05:03]} O-O {[%emt 0:09:06]} 10. O-O {[%emt 0:00:49]} Bg4 {[%emt 0:08:07]} 11. f3 {[%emt 0:03:07]} exd4 {[%emt 0:03:36]} 12. exd4 {[%emt 0:01:58]} Be6 {[%emt 0:00:56]} 13. b3 {[%emt 0:00:07]} Qd7 {[%emt 0:02:37]} 14. Kh2 {[%emt 0:02:43]} Bf5 {[%emt 0:01:41]} 15. Bg5 {[%emt 0:08:10]} Nh7 {[%emt 0:02:32]} 16. Be3 {[%emt 0:02:08]} Rfe8 {[%emt 0:01:52]} 17. Bf2 {[%emt 0:01:02]} Ne7 {[%emt 0:03:06]} 18. Nf4 {[%emt 0:04:53]} Nf6 {[%emt 0:01:33]} 19. Ra2 {[%emt 0:13:11]} Ng6 {[%emt 0:09:54]} 20. Nfd5 {[%emt 0:08:20]} Nxd5 {[%emt 0:04:10]} 21. Nxd5 {[%emt 0:01:07]} Nf8 {[%emt 0:10:39]} 22. Nf4 {[%emt 0:08:30]} g6 {[%emt 0:00:54]} 23. Nd5 {[%emt 0:00:34]} Kg7 {[%emt 0:05:43]} 24. Ne3 {[%emt 0:01:48]} c6 {[%emt 0:04:21]} 25. Nxf5+ {[%emt 0:07:20]} Qxf5 {[%emt 0:00:13]} 1-0

[Event "WYCC U18 Open 2019"]
[Site "Mumbai"]
[Date "2019.10.04"]
[Round "4.12"]
[White "Zhalmakhanov, Ramazan"]
[Black "Srijit Paul"]
[Result "1/2-1/2"]
[ECO "B46"]
[WhiteElo "2374"]
[BlackElo "2317"]
[Annotator "NA"]
[PlyCount "73"]
[EventDate "2019.10.02"]
[EventType "swiss"]
[EventCountry "IND"]
[SourceTitle "playchess.com"]
[Source "ChessBase"]
[SourceQuality "1"]
[TimeControl "40/5400+30:1800+30"]

1. e4 {[%emt 0:00:00]} c5 {[%emt 0:03:55]} 2. Nf3 {[%emt 0:00:00]} Nc6 {[%emt 0:00:07]} 3. d4 {[%emt 0:00:21]} cxd4 {[%emt 0:00:05]} 4. Nxd4 {[%emt 0:00:12]} e6 {[%emt 0:00:25]} 5. Nc3 {[%emt 0:00:31]} a6 {[%emt 0:00:06]} 6. g4 {[%emt 0:07:31]} Nxd4 {[%emt 0:05:42]} 7. Qxd4 {[%emt 0:00:10]} Ne7 {[%emt 0:00:11]} 8. Bf4 {[%emt 0:06:51]} Nc6 {[%emt 0:02:41]} 9. Qd2 {[%emt 0:00:52]} Qa5 {[%emt 0:00:40]} 10. O-O-O {[%emt 0:05:00]} Be7 {[%emt 0:03:02]} 11. Kb1 {[%emt 0:14:25]} O-O {[%emt 0:00:23]} 12. Bg2 {[%emt 0:08:14]} d6 {[%emt 0:12:54]} 13. h3 {[%emt 0:33:06]} Rd8 {[%emt 0:00:48]} 14. Ne2 {[%emt 0:02:19]} Qc7 {[%emt 0:06:18]} 15. Bg5 {[%emt 0:01:33]} b5 {[%emt 0:01:34]} 16. Bxe7 {[%emt 0:01:38]} Qxe7 {[%emt 0:01:29]} 17. f4 {[%emt 0:01:00]} Bb7 {[%emt 0:00:05]} 18. Rhf1 {[%emt 0:03:35]} Rac8 {[%emt 0:01:17]} 19. Ng3 {[%emt 0:01:40]} Qc7 {[%emt 0:03:12]} 20. f5 {[%emt 0:03:00]} Qa5 {[%emt 0:08:25]} 21. Qf4 {[%emt 0:07:19]} Nb4 {[%emt 0:10:16]} 22. a3 {[%emt 0:00:25]} Qa4 {[%emt 0:00:30]} 23. axb4 {[%emt 0:01:04]} Qxc2+ {[%emt 0:01:16]} 24. Ka2 {[%emt 0:00:07]} Rc3 {[%emt 0:00:33]} 25. Ka1 {[%emt 0:01:02]} e5 {[%emt 0:02:25]} 26. Qxe5 {[%emt 0:00:25]} Rcc8 {[%emt 0:22:09]} 27. Rxd6 {[%emt 0:00:27]} Re8 {[%emt 0:00:21]} 28. Qd4 {[%emt 0:00:29]} Qxg2 {[%emt 0:02:09]} 29. Rg1 {[%emt 0:00:00]} Qc2 {[%emt 0:00:28]} 30. Re1 {[%emt 0:00:51]} Qa4+ {[%emt 0:06:19]} 31. Kb1 {[%emt 0:00:01]} a5 {[%emt 0:00:13]} 32. Nh5 {[%emt 0:00:34]} f6 {[%emt 0:00:29]} 33. Rd7 {[%emt 0:01:10]} Bxe4+ {[%emt 0:02:54]} 34. Rxe4 {[%emt 0:00:09]} Qc2+ {[%emt 0:00:05]} 35. Ka2 {[%emt 0:00:26]} Qa4+ {[%emt 0:00:29]} 36. Kb1 {[%emt 0:00:06]} Qc2+ {[%emt 0:00:04]} 37. Ka2 {[%emt 0:00:02]} 1/2-1/2

[Event "WYCC U18 Open 2019"]
[Site "Mumbai"]
[Date "2019.10.04"]
[Round "4.13"]
[White "Wang, Shixu B"]
[Black "Timoshin, Andrei"]
[Result "1-0"]
[ECO "D53"]
[WhiteElo "2370"]
[BlackElo "2270"]
[Annotator "NA"]
[PlyCount "57"]
[EventDate "2019.10.02"]
[EventType "swiss"]
[EventCountry "IND"]
[SourceTitle "playchess.com"]
[Source "ChessBase"]
[SourceQuality "1"]
[TimeControl "40/5400+30:1800+30"]

1. d4 d5 2. c4 e6 3. Nc3 Nf6 4. Bg5 Be7 5. e3 c6 6. Nf3 Nbd7 7. Qc2 O-O 8. Bd3 dxc4 9. Bxc4 b5 10. Bd3 Bb7 11. O-O a6 12. Rfd1 h6 13. Bh4 Rc8 14. Qe2 Qb6 15. e4 g5 16. Bg3 Nh5 17. e5 Nxg3 18. hxg3 Rfd8 19. Be4 Qa7 20. a3 b4 21. axb4 Bxb4 22. Bd3 a5 23. Ne4 Kg7 24. Nfxg5 hxg5 25. Nxg5 Be7 26. Nxe6+ fxe6 27. Qg4+ Kf8 28. Qxe6 Nxe5 29. Qh6+ 1-0

[Event "WYCC U18 Open 2019"]
[Site "Mumbai"]
[Date "2019.10.04"]
[Round "4.14"]
[White "Theekshana, H G Denuwan"]
[Black "Kozak, Antoni"]
[Result "0-1"]
[ECO "A61"]
[WhiteElo "1886"]
[BlackElo "2354"]
[Annotator "NA"]
[PlyCount "116"]
[EventDate "2019.10.02"]
[EventType "swiss"]
[EventCountry "IND"]
[SourceTitle "playchess.com"]
[Source "ChessBase"]
[SourceQuality "1"]
[TimeControl "40/5400+30:1800+30"]

1. d4 {[%emt 0:00:00]} Nf6 {[%emt 0:00:00]} 2. Nf3 {[%emt 0:00:00]} c5 {[%emt 0:01:12]} 3. d5 {[%emt 0:00:00]} e6 {[%emt 0:00:20]} 4. c4 {[%emt 0:00:00]} exd5 {[%emt 0:00:09]} 5. cxd5 {[%emt 0:00:00]} d6 {[%emt 0:00:06]} 6. Nc3 {[%emt 0:00:00]} g6 {[%emt 0:00:03]} 7. e4 {[%emt 0:00:00]} Bg7 {[%emt 0:00:04]} 8. h3 {[%emt 0:00:24]} O-O {[%emt 0:00:05]} 9. Qc2 {[%emt 0:00:18]} a6 {[%emt 0:15:45]} 10. a4 {[%emt 0:00:01]} Nbd7 {[%emt 0:00:05]} 11. Bf4 {[%emt 0:00:46]} Qe7 {[%emt 0:00:16]} 12. Bd3 {[%emt 0:04:00]} Nh5 {[%emt 0:01:40]} 13. Be3 {[%emt 0:01:49]} Ne5 {[%emt 0:06:11]} 14. Be2 {[%emt 0:06:47]} f5 {[%emt 0:00:32]} 15. Nxe5 {[%emt 0:00:36]} Bxe5 {[%emt 0:00:06]} 16. Bxh5 {[%emt 0:00:13]} gxh5 17. f4 {[%emt 0:30:02]} Bg7 {[%emt 0:05:52]} 18. Kf2 {[%emt 0:17:02]} Re8 {[%emt 0:02:52]} 19. e5 {[%emt 0:07:18]} dxe5 {[%emt 0:00:11]} 20. Ne2 {[%emt 0:00:04]} b6 {[%emt 0:03:01]} 21. Qc4 {[%emt 0:03:52]} a5 {[%emt 0:02:52]} 22. d6+ {[%emt 0:04:34]} Be6 {[%emt 0:00:11]} 23. Qxc5 {[%emt 0:03:02]} Qh4+ {[%emt 0:08:09]} 24. g3 {[%emt 0:00:01]} Qf6 {[%emt 0:00:09]} 25. fxe5 {[%emt 0:01:34]} Qf7 {[%emt 0:02:20]} 26. Qc7 {[%emt 0:02:44]} Bd7 {[%emt 0:00:04]} 27. Bf4 {[%emt 0:06:35]} Rac8 {[%emt 0:02:03]} 28. Qxb6 {[%emt 0:00:46]} h4 {[%emt 0:00:21]} 29. Rac1 {[%emt 0:01:08]} hxg3+ {[%emt 0:01:00]} 30. Nxg3 {[%emt 0:00:27]} Rb8 {[%emt 0:00:09]} 31. Qd4 {[%emt 0:01:06]} Rb4 {[%emt 0:00:28]} 32. Qd2 {[%emt 0:00:17]} Qa2 {[%emt 0:04:50]} 33. Rc2 {[%emt 0:02:26]} Reb8 {[%emt 0:01:20]} 34. Rhc1 {[%emt 0:01:42]} Rxb2 {[%emt 0:00:40]} 35. Ne2 {[%emt 0:06:40]} Bxa4 {[%emt 0:07:12]} 36. Rxb2 Rxb2 37. Rc8+ {[%emt 0:00:24]} Kf7 {[%emt 0:00:08]} 38. Rc7+ {[%emt 0:00:56]} Kf8 {[%emt 0:00:24]} 39. Rc8+ {[%emt 0:00:59]} Kf7 {[%emt 0:00:04]} 40. Qe3 {[%emt 0:00:22]} Bb5 {[%emt 0:06:46]} 41. e6+ {[%emt 0:30:01]} Qxe6 {[%emt 0:30:08]} 42. Rc7+ {[%emt 0:00:00]} Bd7 {[%emt 0:00:00]} 43. Qf3 {[%emt 0:00:00]} Kg8 {[%emt 0:00:00]} 44. Qa8+ {[%emt 0:00:00]} Bf8 {[%emt 0:00:00]} 45. Qg2+ {[%emt 0:00:00]} Kh8 {[%emt 0:00:00]} 46. Qf3 {[%emt 0:00:00]} Kg8 {[%emt 0:00:00]} 47. Qg2+ {[%emt 0:00:00]} Bg7 {[%emt 0:00:00]} 48. Qa8+ {[%emt 0:00:00]} Kf7 {[%emt 0:00:00]} 49. Qf3 {[%emt 0:00:00]} h6 {[%emt 0:00:00]} 50. Bc1 {[%emt 0:00:00]} Ra2 {[%emt 0:00:00]} 51. Be3 {[%emt 0:00:00]} Kg8 {[%emt 0:00:00]} 52. Qa8+ {[%emt 0:00:45]} Kh7 {[%emt 0:00:00]} 53. Qb7 {[%emt 0:01:32]} Qxd6 {[%emt 0:00:00]} 54. Rxd7 {[%emt 0:01:20]} Qh2+ {[%emt 0:00:00]} 55. Kf3 {[%emt 0:00:26]} Qxh3+ {[%emt 0:00:00]} 56. Kf2 {[%emt 0:01:53]} Qh2+ {[%emt 0:00:00]} 57. Kf3 {[%emt 0:00:12]} Qxe2+ {[%emt 0:00:00]} 58. Kf4 {[%emt 0:00:06]} Qg4# {[%emt 0:00:00]} 0-1

[Event "WYCC U18 Open 2019"]
[Site "Mumbai"]
[Date "2019.10.04"]
[Round "4.15"]
[White "Stoleriu, George"]
[Black "Omorjan, Dejan"]
[Result "1/2-1/2"]
[ECO "B15"]
[WhiteElo "2351"]
[BlackElo "2252"]
[Annotator "NA"]
[PlyCount "186"]
[EventDate "2019.10.02"]
[EventType "swiss"]
[EventCountry "IND"]
[SourceTitle "playchess.com"]
[Source "ChessBase"]
[SourceQuality "1"]
[TimeControl "40/5400+30:1800+30"]

1. e4 {[%emt 0:00:00]} c6 {[%emt 0:04:59]} 2. d4 {[%emt 0:00:00]} d5 {[%emt 0:00:04]} 3. Nc3 {[%emt 0:00:00]} dxe4 {[%emt 0:00:05]} 4. Nxe4 {[%emt 0:00:00]} Nf6 {[%emt 0:00:06]} 5. Nxf6+ {[%emt 0:00:00]} exf6 {[%emt 0:00:05]} 6. c3 {[%emt 0:02:10]} Bd6 {[%emt 0:00:05]} 7. Bd3 {[%emt 0:00:05]} O-O {[%emt 0:00:07]} 8. Ne2 {[%emt 0:00:31]} Re8 {[%emt 0:00:06]} 9. Qc2 {[%emt 0:00:55]} h5 10. Bd2 {[%emt 0:01:55]} Nd7 {[%emt 0:02:21]} 11. O-O-O {[%emt 0:02:29]} Nf8 {[%emt 0:01:04]} 12. Kb1 {[%emt 0:04:33]} Be6 {[%emt 0:02:15]} 13. c4 {[%emt 0:25:06]} Rc8 {[%emt 0:02:54]} 14. Nc3 {[%emt 0:15:19]} Be7 {[%emt 0:14:47]} 15. Be3 {[%emt 0:03:33]} Qa5 {[%emt 0:05:42]} 16. Qa4 {[%emt 0:02:24]} Qxa4 {[%emt 0:04:14]} 17. Nxa4 {[%emt 0:01:48]} Rcd8 {[%emt 0:05:54]} 18. Nc3 {[%emt 0:03:36]} Bb4 {[%emt 0:11:52]} 19. Ne2 {[%emt 0:04:03]} g6 {[%emt 0:03:18]} 20. h3 {[%emt 0:01:03]} Bd6 {[%emt 0:03:22]} 21. Nc3 {[%emt 0:02:28]} Bb8 {[%emt 0:03:07]} 22. Rhe1 {[%emt 0:04:42]} f5 {[%emt 0:04:51]} 23. f4 {[%emt 0:08:33]} Nh7 {[%emt 0:01:53]} 24. Bf2 {[%emt 0:11:19]} Nf6 {[%emt 0:07:34]} 25. Bh4 {[%emt 0:02:21]} Kg7 {[%emt 0:00:35]} 26. d5 {[%emt 0:01:09]} cxd5 {[%emt 0:08:47]} 27. cxd5 {[%emt 0:00:09]} Nxd5 {[%emt 0:03:52]} 28. Bxd8 {[%emt 0:00:04]} Nxc3+ {[%emt 0:00:37]} 29. bxc3 {[%emt 0:00:05]} Rxd8 {[%emt 0:00:06]} 30. Rf1 {[%emt 0:00:07]} Rc8 {[%emt 0:00:59]} 31. Kb2 {[%emt 0:00:25]} Rc5 {[%emt 0:01:35]} 32. Bc2 {[%emt 0:00:39]} Bd5 {[%emt 0:00:50]} 33. Rf2 {[%emt 0:01:16]} h4 {[%emt 0:01:31]} 34. Bb3 {[%emt 0:00:34]} Bc6 {[%emt 0:00:21]} 35. Rd4 {[%emt 0:00:03]} Bc7 {[%emt 0:01:19]} 36. Re2 {[%emt 0:00:06]} Kf6 {[%emt 0:01:53]} 37. Red2 {[%emt 0:02:17]} Bb8 {[%emt 0:01:28]} 38. Bd5 {[%emt 0:01:01]} Bxf4 {[%emt 0:01:18]} 39. Rxf4 {[%emt 0:01:06]} Rxd5 {[%emt 0:00:55]} 40. Rxd5 {[%emt 0:01:25]} Bxd5 {[%emt 0:00:02]} 41. Rf2 {[%emt 0:03:06]} Ke5 {[%emt 0:05:10]} 42. Kc1 {[%emt 0:02:34]} f4 {[%emt 0:03:01]} 43. Kd1 {[%emt 0:03:15]} f3 {[%emt 0:02:06]} 44. gxf3 {[%emt 0:00:32]} Kf4 {[%emt 0:00:24]} 45. Ke2 {[%emt 0:03:04]} f5 {[%emt 0:06:11]} 46. a4 {[%emt 0:04:26]} g5 {[%emt 0:03:17]} 47. a5 {[%emt 0:00:46]} a6 {[%emt 0:00:36]} 48. c4 {[%emt 0:04:04]} Bxc4+ {[%emt 0:00:59]} 49. Ke1 {[%emt 0:00:09]} Bd5 {[%emt 0:01:46]} 50. Rd2 {[%emt 0:00:46]} Bxf3 {[%emt 0:00:31]} 51. Kf2 {[%emt 0:00:03]} g4 {[%emt 0:03:19]} 52. Rd4+ {[%emt 0:01:04]} Be4 {[%emt 0:01:12]} 53. Rc4 {[%emt 0:05:49]} gxh3 {[%emt 0:03:23]} 54. Kg1 {[%emt 0:00:19]} Ke3 {[%emt 0:03:34]} 55. Rc1 {[%emt 0:03:02]} Bd3 {[%emt 0:02:08]} 56. Re1+ {[%emt 0:00:42]} Be2 {[%emt 0:00:45]} 57. Rb1 {[%emt 0:00:08]} Bf3 {[%emt 0:00:57]} 58. Rb3+ {[%emt 0:00:53]} Kf4 {[%emt 0:00:07]} 59. Rb4+ {[%emt 0:00:31]} Kg3 {[%emt 0:00:45]} 60. Rb2 {[%emt 0:00:04]} Be4 {[%emt 0:00:29]} 61. Rb3+ {[%emt 0:00:16]} Kg4 {[%emt 0:00:26]} 62. Rb4 {[%emt 0:00:16]} Kg5 {[%emt 0:00:20]} 63. Rb3 {[%emt 0:02:09]} Bg2 {[%emt 0:00:29]} 64. Kf2 {[%emt 0:01:11]} Kg4 {[%emt 0:01:28]} 65. Kg1 {[%emt 0:00:50]} Bc6 {[%emt 0:00:33]} 66. Rb4+ {[%emt 0:00:39]} f4 {[%emt 0:00:53]} 67. Rb3 {[%emt 0:00:51]} Bg2 {[%emt 0:00:35]} 68. Rb2 {[%emt 0:01:01]} Kf5 {[%emt 0:00:50]} 69. Re2 {[%emt 0:01:06]} Be4 {[%emt 0:00:40]} 70. Kh2 {[%emt 0:00:13]} f3 {[%emt 0:00:24]} 71. Rd2 {[%emt 0:00:31]} Kf4 {[%emt 0:00:35]} 72. Kg1 {[%emt 0:00:03]} Ke3 {[%emt 0:00:28]} 73. Rh2 {[%emt 0:00:15]} Bf5 {[%emt 0:00:34]} 74. Rb2 {[%emt 0:00:07]} Be6 {[%emt 0:00:20]} 75. Rh2 {[%emt 0:00:21]} Kd4 {[%emt 0:00:29]} 76. Rb2 {[%emt 0:01:34]} Bd5 {[%emt 0:00:12]} 77. Rh2 {[%emt 0:00:30]} Bc6 {[%emt 0:01:08]} 78. Rxh3 {[%emt 0:00:15]} Ke3 {[%emt 0:00:24]} 79. Rh2 {[%emt 0:00:05]} Be4 {[%emt 0:00:21]} 80. Rb2 {[%emt 0:01:17]} Bd3 {[%emt 0:00:33]} 81. Rh2 {[%emt 0:00:07]} Be2 {[%emt 0:00:30]} 82. Rf2 {[%emt 0:00:03]} Kd2 {[%emt 0:00:38]} 83. Rh2 {[%emt 0:00:12]} Ke1 {[%emt 0:00:15]} 84. Rf2 {[%emt 0:00:04]} h3 {[%emt 0:00:41]} 85. Rh2 {[%emt 0:00:04]} Bf1 {[%emt 0:00:32]} 86. Rb2 {[%emt 0:01:40]} Be2 {[%emt 0:00:31]} 87. Rb1+ {[%emt 0:00:12]} Kd2 {[%emt 0:00:23]} 88. Kf2 {[%emt 0:00:09]} h2 {[%emt 0:00:41]} 89. Rh1 {[%emt 0:00:07]} Kc3 {[%emt 0:00:05]} 90. Rxh2 {[%emt 0:00:17]} Kb4 {[%emt 0:00:08]} 91. Rh7 {[%emt 0:01:51]} Kxa5 {[%emt 0:00:23]} 92. Rxb7 {[%emt 0:00:04]} Ka4 {[%emt 0:00:23]} 93. Rb1 {[%emt 0:00:27]} Ka5 {[%emt 0:00:44]} 1/2-1/2

[Event "WYCC U18 Open 2019"]
[Site "Mumbai"]
[Date "2019.10.04"]
[Round "4.16"]
[White "Manu David Suthandram R"]
[Black "Sibi Visal R"]
[Result "1/2-1/2"]
[ECO "A01"]
[WhiteElo "2403"]
[BlackElo "2064"]
[Annotator "NA"]
[PlyCount "74"]
[EventDate "2019.10.02"]
[EventType "swiss"]
[EventCountry "IND"]
[SourceTitle "playchess.com"]
[Source "ChessBase"]
[SourceQuality "1"]
[TimeControl "40/5400+30:1800+30"]

1. b3 {[%emt 0:00:00]} d5 {[%emt 0:00:00]} 2. Bb2 {[%emt 0:00:05]} Nf6 {[%emt 0:00:00]} 3. e3 {[%emt 0:00:13]} Bf5 {[%emt 0:00:00]} 4. Nf3 {[%emt 0:00:09]} e6 {[%emt 0:00:08]} 5. Be2 {[%emt 0:01:46]} Be7 {[%emt 0:00:13]} 6. O-O {[%emt 0:00:14]} h6 {[%emt 0:00:26]} 7. d3 {[%emt 0:01:12]} O-O {[%emt 0:00:31]} 8. Nbd2 {[%emt 0:02:00]} c5 {[%emt 0:01:53]} 9. Ne5 {[%emt 0:01:01]} Nfd7 {[%emt 0:02:42]} 10. e4 {[%emt 0:02:42]} Bh7 {[%emt 0:01:49]} 11. Nxd7 {[%emt 0:03:51]} Nxd7 {[%emt 0:01:24]} 12. Qc1 {[%emt 0:14:15]} Qc7 {[%emt 0:01:33]} 13. f4 {[%emt 0:01:19]} c4 {[%emt 0:08:11]} 14. bxc4 {[%emt 0:03:58]} dxe4 {[%emt 0:00:02]} 15. Nxe4 {[%emt 0:12:12]} Bxe4 {[%emt 0:00:09]} 16. dxe4 {[%emt 0:00:04]} Nb6 {[%emt 0:00:08]} 17. Kh1 {[%emt 0:03:58]} Nxc4 {[%emt 0:00:16]} 18. Bd4 {[%emt 0:04:22]} e5 {[%emt 0:14:38]} 19. fxe5 {[%emt 0:08:36]} Nxe5 {[%emt 0:01:33]} 20. Qb2 {[%emt 0:02:23]} Bf6 {[%emt 0:04:52]} 21. Rab1 {[%emt 0:05:52]} b6 {[%emt 0:00:36]} 22. a4 {[%emt 0:03:10]} Rad8 {[%emt 0:04:48]} 23. c3 {[%emt 0:00:21]} Nd7 {[%emt 0:00:27]} 24. a5 {[%emt 0:07:47]} Be5 {[%emt 0:10:32]} 25. axb6 {[%emt 0:01:12]} Nxb6 {[%emt 0:00:20]} 26. Bxb6 {[%emt 0:01:31]} axb6 {[%emt 0:00:01]} 27. Qxb6 {[%emt 0:00:36]} Bxh2 {[%emt 0:00:36]} 28. Qxc7 {[%emt 0:00:32]} Bxc7 {[%emt 0:00:02]} 29. Rb7 {[%emt 0:01:00]} Be5 {[%emt 0:01:57]} 30. Bc4 {[%emt 0:01:35]} Bxc3 {[%emt 0:02:39]} 31. Rbxf7 {[%emt 0:00:38]} Rxf7 {[%emt 0:00:13]} 32. Bxf7+ {[%emt 0:04:10]} Kh7 {[%emt 0:00:18]} 33. Kh2 {[%emt 0:03:35]} Be5+ {[%emt 0:00:23]} 34. Kh3 {[%emt 0:00:31]} Rd4 {[%emt 0:00:24]} 35. Be6 {[%emt 0:01:35]} h5 {[%emt 0:02:46]} 36. Rf5 {[%emt 0:03:04]} Rd3+ {[%emt 0:00:10]} 37. g3 {[%emt 0:00:50]} Rxg3+ {[%emt 0:04:54]} 1/2-1/2

[Event "WYCC U18 Open 2019"]
[Site "Mumbai"]
[Date "2019.10.06"]
[Round "6.1"]
[White "Gholami, Aryan"]
[Black "Praggnanandhaa R"]
[Result "1/2-1/2"]
[ECO "A05"]
[WhiteElo "2554"]
[BlackElo "2567"]
[Annotator "ChessBase"]
[PlyCount "77"]
[EventDate "2019.10.02"]
[EventType "swiss"]
[EventCountry "IND"]
[SourceTitle "playchess.com"]
[Source "ChessBase"]
[SourceQuality "1"]
[TimeControl "40/5400+30:1800+30"]

1. Nf3 {[%emt 0:00:00]} Nf6 {[%emt 0:00:00]} 2. g3 {[%emt 0:00:00]} d5 {[%emt 0:00:03]} 3. Bg2 {[%emt 0:00:00]} e6 {[%emt 0:00:06]} 4. O-O {[%emt 0:00:19]} Be7 {[%emt 0:00:12]} 5. c4 {[%emt 0:00:13]} O-O {[%emt 0:00:40]} 6. b3 {[%emt 0:00:26]} c5 {[%emt 0:00:52]} 7. Bb2 {[%emt 0:00:58]} Nc6 {[%emt 0:00:54]} 8. cxd5 {[%emt 0:05:41]} Nxd5 {[%emt 0:01:36]} 9. d4 {[%emt 0:00:47]} cxd4 {[%emt 0:02:00]} 10. Nxd4 {[%emt 0:00:09]} Bd7 {[%emt 0:00:45]} 11. e4 {[%emt 0:08:14]} Ndb4 {[%emt 0:19:04]} 12. a3 {[%emt 0:09:13]} Nxd4 {[%emt 0:02:56]} 13. Qxd4 {[%emt 0:00:08]} e5 {[%emt 0:01:05]} 14. Qd1 {[%emt 0:02:01]} Nc6 {[%emt 0:00:35]} 15. Nc3 {[%emt 0:00:08]} Bc5 {[%emt 0:09:27]} 16. Nd5 {[%emt 0:02:12]} Be6 {[%emt 0:04:48]} 17. b4 {[%emt 0:07:12]} Bd4 {[%emt 0:01:49]} 18. Rb1 {[%emt 0:05:45]} a6 {[%emt 0:04:20]} 19. a4 {[%emt 0:02:14]} b5 {[%emt 0:18:29]} 20. axb5 {[%emt 0:28:17]} axb5 {[%emt 0:00:13]} 21. Qe2 {[%emt 0:00:04]} Bxb2 {[%emt 0:08:56]} 22. Qxb2 {[%emt 0:00:06]} f5 {[%emt 0:00:28]} 23. Rfd1 {[%emt 0:06:46]} Nd4 {[%emt 0:03:38]} 24. f4 {[%emt 0:00:57]} fxe4 {[%emt 0:06:29]} 25. fxe5 {[%emt 0:00:08]} Qxd5 {[%emt 0:00:52]} 26. Qxd4 {[%emt 0:00:08]} Rad8 {[%emt 0:05:16]} 27. Qxd5 {[%emt 0:00:41]} Bxd5 28. Re1 {[%emt 0:06:25]} Kf7 {[%emt 0:03:41]} 29. Rbc1 {[%emt 0:00:08]} Rc8 {[%emt 0:02:08]} 30. Rcd1 {[%emt 0:00:17]} Rcd8 {[%emt 0:01:13]} 31. Rd2 {[%emt 0:05:16]} Bb7 {[%emt 0:01:14]} 32. Rc2 {[%emt 0:03:29]} Rc8 {[%emt 0:00:33]} 33. Rf2+ {[%emt 0:01:16]} Ke7 {[%emt 0:00:07]} 34. Rxf8 {[%emt 0:00:21]} Rxf8 {[%emt 0:00:47]} 35. Bxe4 {[%emt 0:00:51]} Bxe4 {[%emt 0:00:07]} 36. Rxe4 {[%emt 0:00:04]} Ke6 {[%emt 0:00:17]} 37. Rd4 {[%emt 0:00:25]} Rf5 {[%emt 0:00:23]} 38. Rd6+ {[%emt 0:00:16]} Kxe5 {[%emt 0:00:07]} 39. Rd7 {[%emt 0:00:05]} 1/2-1/2